[Event "Titled Tuesday Blitz October 26 2021"]
[White "De Silva, L M S T"]
[Black "Perez Ponsa, Federico"]
[WhiteFideId "9953698"]
[BlackFideId "117927"]
[WhiteElo "1621"]
[BlackElo "2672"]
[Result "0-1"]
[Round "03"]
[TimeControl "180+1"]
[Date "2021.10.26"]
[WhiteClock "0:00:18"]
[BlackClock "0:00:13"]

1. e4 {[%clk 0:03:00]}  c5 {[%clk 0:02:43]} 2. Nf3 {[%clk 0:03:00]}  d6 {[%clk 0:02:44]} 3. Bb5+ {[%clk 0:03:00]}  Bd7 {[%clk 0:02:44]} 4. Bxd7+ {[%clk 0:03:00]}  Nxd7 {[%clk 0:02:44]} 5. O-O {[%clk 0:03:00]}  Ngf6 {[%clk 0:02:45]} 6. Qe2 {[%clk 0:03:01]}  e6 {[%clk 0:02:43]} 7. c3 {[%clk 0:03:01]}  Ne5 {[%clk 0:02:40]} 8. d4 {[%clk 0:02:58]}  Nxf3+ {[%clk 0:02:38]} 9. Qxf3 {[%clk 0:02:58]}  cxd4 {[%clk 0:02:38]} 10. cxd4 {[%clk 0:02:59]}  d5 {[%clk 0:02:39]} 11. e5 {[%clk 0:02:53]}  Ne4 {[%clk 0:02:39]} 12. Nc3 {[%clk 0:02:53]}  Nxc3 {[%clk 0:02:38]} 13. bxc3 {[%clk 0:02:54]}  Be7 {[%clk 0:02:38]} 14. Rb1 {[%clk 0:02:54]}  b6 {[%clk 0:02:38]} 15. Qd3 {[%clk 0:02:49]}  O-O {[%clk 0:02:35]} 16. f4 {[%clk 0:02:49]}  f5 {[%clk 0:02:30]} 17. Kh1 {[%clk 0:02:47]}  Rc8 {[%clk 0:02:30]} 18. Bd2 {[%clk 0:02:47]}  Qd7 {[%clk 0:02:29]} 19. g4 {[%clk 0:02:43]}  Qa4 {[%clk 0:02:25]} 20. gxf5 {[%clk 0:02:39]}  Rxf5 {[%clk 0:02:25]} 21. Rg1 {[%clk 0:02:29]}  Qc4 {[%clk 0:02:04]} 22. Qe3 {[%clk 0:02:10]}  Rcf8 {[%clk 0:02:00]} 23. Rg2 {[%clk 0:01:50]}  Qxa2 {[%clk 0:01:39]} 24. Rbg1 {[%clk 0:01:49]}  R8f7 {[%clk 0:01:34]} 25. Qh3 {[%clk 0:01:48]}  Bf8 {[%clk 0:01:06]} 26. Be1 {[%clk 0:01:31]}  Qb1 {[%clk 0:01:02]} 27. Bh4 {[%clk 0:01:05]}  Qe4 {[%clk 0:00:59]} 28. Bg5 {[%clk 0:01:06]}  Be7 {[%clk 0:00:47]} 29. Bh6 {[%clk 0:01:00]}  Bf8 {[%clk 0:00:41]} 30. Qg3 {[%clk 0:00:59]}  Rh5 {[%clk 0:00:38]} 31. Re1 {[%clk 0:00:49]}  Qf5 {[%clk 0:00:35]} 32. Bg5 {[%clk 0:00:49]}  h6 {[%clk 0:00:33]} 33. Bf6 {[%clk 0:00:46]}  Kh7 {[%clk 0:00:31]} 34. h4 {[%clk 0:00:41]}  Rxf6 {[%clk 0:00:20]} 35. exf6 {[%clk 0:00:40]}  Qxf6 {[%clk 0:00:20]} 36. Re5 {[%clk 0:00:38]}  Qxh4+ {[%clk 0:00:19]} 37. Qxh4 {[%clk 0:00:37]}  Rxh4+ {[%clk 0:00:20]} 38. Kg1 {[%clk 0:00:38]}  Rxf4 {[%clk 0:00:21]} 39. Rxe6 {[%clk 0:00:38]}  Rf5 {[%clk 0:00:20]} 40. Re8 {[%clk 0:00:38]}  a5 {[%clk 0:00:20]} 41. Rb8 {[%clk 0:00:38]}  Rf6 {[%clk 0:00:20]} 42. Rb7 {[%clk 0:00:37]}  a4 {[%clk 0:00:20]} 43. Rb2 {[%clk 0:00:31]}  Rc6 {[%clk 0:00:18]} 44. R2xb6 {[%clk 0:00:30]}  Rxc3 {[%clk 0:00:18]} 45. Rb8 {[%clk 0:00:28]}  Be7 {[%clk 0:00:18]} 46. R8b7 {[%clk 0:00:27]}  Bg5 {[%clk 0:00:18]} 47. Ra6 {[%clk 0:00:24]}  a3 {[%clk 0:00:16]} 48. Rba7 {[%clk 0:00:18]}  Be3+ {[%clk 0:00:13]} 49. Kf1 {[%clk 0:00:18]}  Bxd4 {[%clk 0:00:12]} 50. Rxa3 {[%clk 0:00:18]}  Rc1+ {[%clk 0:00:13]} 0-1


[Site "https://www.chess.com"]

[Event "Titled Tuesday Blitz October 26 2021"]
[White "Dorokhin, Mykhailo"]
[Black "Shipov, Sergei"]
[WhiteFideId "14114178"]
[BlackFideId "4113624"]
[WhiteElo "2280"]
[BlackElo "2793"]
[Result "0-1"]
[Round "03"]
[TimeControl "180+1"]
[Date "2021.10.26"]
[WhiteClock "0:00:20"]
[BlackClock "0:01:19"]

1. d4 {[%clk 0:03:00]}  d5 {[%clk 0:02:57]} 2. Nf3 {[%clk 0:03:00]}  e6 {[%clk 0:02:57]} 3. Bf4 {[%clk 0:03:00]}  Bd6 {[%clk 0:02:57]} 4. e3 {[%clk 0:03:00]}  c5 {[%clk 0:02:56]} 5. c3 {[%clk 0:03:00]}  Nf6 {[%clk 0:02:50]} 6. Be2 {[%clk 0:03:00]}  Bxf4 {[%clk 0:02:43]} 7. exf4 {[%clk 0:03:00]}  Qc7 {[%clk 0:02:43]} 8. Ne5 {[%clk 0:02:51]}  Nc6 {[%clk 0:02:38]} 9. O-O {[%clk 0:02:49]}  O-O {[%clk 0:02:38]} 10. Nxc6 {[%clk 0:02:17]}  bxc6 {[%clk 0:02:37]} 11. g3 {[%clk 0:02:04]}  cxd4 {[%clk 0:02:37]} 12. cxd4 {[%clk 0:02:05]}  Qb6 {[%clk 0:02:36]} 13. b3 {[%clk 0:01:54]}  c5 {[%clk 0:02:36]} 14. dxc5 {[%clk 0:01:53]}  Qxc5 {[%clk 0:02:36]} 15. Nd2 {[%clk 0:01:53]}  Bd7 {[%clk 0:02:33]} 16. Rc1 {[%clk 0:01:52]}  Qa3 {[%clk 0:02:34]} 17. Qc2 {[%clk 0:01:51]}  Rfc8 {[%clk 0:02:33]} 18. Qb1 {[%clk 0:01:51]}  h6 {[%clk 0:02:33]} 19. Nf3 {[%clk 0:01:49]}  Ne4 {[%clk 0:02:33]} 20. Ne5 {[%clk 0:01:37]}  Nd2 {[%clk 0:02:28]} 21. Qd3 {[%clk 0:01:23]}  Rxc1 {[%clk 0:02:26]} 22. Qxd2 {[%clk 0:01:20]}  Rxf1+ {[%clk 0:02:25]} 23. Bxf1 {[%clk 0:01:19]}  Be8 {[%clk 0:02:25]} 24. Bd3 {[%clk 0:01:16]}  Rc8 {[%clk 0:02:25]} 25. Kg2 {[%clk 0:01:14]}  Qc1 {[%clk 0:02:12]} 26. Qa5 {[%clk 0:01:14]}  Qc5 {[%clk 0:02:10]} 27. Qa6 {[%clk 0:01:12]}  Rb8 {[%clk 0:02:04]} 28. Bb1 {[%clk 0:01:09]}  Bb5 {[%clk 0:02:01]} 29. Nd3 {[%clk 0:00:56]}  Qxf2+ {[%clk 0:01:54]} 30. Kxf2 {[%clk 0:00:52]}  Bxa6 {[%clk 0:01:55]} 31. Nc5 {[%clk 0:00:51]}  Bb5 {[%clk 0:01:53]} 32. Ke3 {[%clk 0:00:51]}  a5 {[%clk 0:01:53]} 33. Kd4 {[%clk 0:00:48]}  Kf8 {[%clk 0:01:53]} 34. a4 {[%clk 0:00:42]}  Be8 {[%clk 0:01:52]} 35. f5 {[%clk 0:00:40]}  Ke7 {[%clk 0:01:48]} 36. fxe6 {[%clk 0:00:37]}  fxe6 {[%clk 0:01:48]} 37. Ke5 {[%clk 0:00:37]}  Bf7 {[%clk 0:01:48]} 38. Bd3 {[%clk 0:00:35]}  Rc8 {[%clk 0:01:40]} 39. Nb7 {[%clk 0:00:35]}  Rc3 {[%clk 0:01:39]} 40. Bb5 {[%clk 0:00:34]}  Re3+ {[%clk 0:01:38]} 41. Kd4 {[%clk 0:00:30]}  Rxb3 {[%clk 0:01:37]} 42. Nxa5 {[%clk 0:00:30]}  Ra3 {[%clk 0:01:37]} 43. Nb7 {[%clk 0:00:27]}  Be8 {[%clk 0:01:33]} 44. Bxe8 {[%clk 0:00:23]}  Kxe8 {[%clk 0:01:33]} 45. a5 {[%clk 0:00:22]}  Kd7 {[%clk 0:01:29]} 46. Ke5 {[%clk 0:00:21]}  Re3+ {[%clk 0:01:20]} 47. Kf4 {[%clk 0:00:21]}  Re4+ {[%clk 0:01:19]} 48. Kf3 {[%clk 0:00:22]}  Kc6 {[%clk 0:01:19]} 49. a6 {[%clk 0:00:22]}  Kb6 {[%clk 0:01:19]} 50. Nd8 {[%clk 0:00:20]}  Kxa6 {[%clk 0:01:19]} 0-1


[Site "https://www.chess.com"]

[Event "Titled Tuesday Blitz October 26 2021"]
[White "Ghimpu, Samuel-Timotei"]
[Black "Steven_Rojas"]
[WhiteFideId "1238175"]
[WhiteElo "2012"]
[BlackElo "2548"]
[Result "1-0"]
[Round "03"]
[TimeControl "180+1"]
[Date "2021.10.26"]
[WhiteClock "0:00:09"]
[BlackClock "0:00:39"]

1. b3 {[%clk 0:03:00]}  f5 {[%clk 0:02:58]} 2. Bb2 {[%clk 0:02:58]}  e6 {[%clk 0:02:59]} 3. g3 {[%clk 0:02:55]}  Nf6 {[%clk 0:02:59]} 4. Bg2 {[%clk 0:02:56]}  d5 {[%clk 0:02:59]} 5. d3 {[%clk 0:02:53]}  Bd6 {[%clk 0:02:59]} 6. Nf3 {[%clk 0:02:47]}  Nbd7 {[%clk 0:02:58]} 7. O-O {[%clk 0:02:47]}  e5 {[%clk 0:02:57]} 8. c4 {[%clk 0:02:47]}  c6 {[%clk 0:02:57]} 9. cxd5 {[%clk 0:02:32]}  cxd5 {[%clk 0:02:57]} 10. Nc3 {[%clk 0:02:33]}  a6 {[%clk 0:02:57]} 11. Rc1 {[%clk 0:02:32]}  d4 {[%clk 0:02:38]} 12. Nb1 {[%clk 0:02:28]}  O-O {[%clk 0:02:37]} 13. Nbd2 {[%clk 0:02:19]}  Nb6 {[%clk 0:02:19]} 14. a4 {[%clk 0:02:10]}  Be6 {[%clk 0:02:14]} 15. a5 {[%clk 0:02:09]}  Nbd7 {[%clk 0:02:14]} 16. Ng5 {[%clk 0:01:56]}  Bd5 {[%clk 0:02:10]} 17. Nc4 {[%clk 0:01:52]}  Qe7 {[%clk 0:02:07]} 18. Nxd6 {[%clk 0:01:47]}  Qxd6 {[%clk 0:02:06]} 19. Qd2 {[%clk 0:01:40]}  Rfc8 {[%clk 0:01:57]} 20. e3 {[%clk 0:01:33]}  Bxg2 {[%clk 0:01:52]} 21. Kxg2 {[%clk 0:01:33]}  Nc5 {[%clk 0:01:52]} 22. Ba3 {[%clk 0:00:54]}  Qd5+ {[%clk 0:01:44]} 23. Nf3 {[%clk 0:00:36]}  Nxb3 {[%clk 0:01:42]} 24. Rxc8+ {[%clk 0:00:36]}  Rxc8 {[%clk 0:01:43]} 25. Qb2 {[%clk 0:00:34]}  dxe3 {[%clk 0:01:33]} 26. fxe3 {[%clk 0:00:29]}  Qxd3 {[%clk 0:01:34]} 27. Nxe5 {[%clk 0:00:27]}  Qe4+ {[%clk 0:01:33]} 28. Kh3 {[%clk 0:00:22]}  Rc2 {[%clk 0:00:59]} 29. Qxb3+ {[%clk 0:00:20]}  Nd5 {[%clk 0:01:00]} 30. Rf3 {[%clk 0:00:12]}  Qxe5 {[%clk 0:00:55]} 31. Qxc2 {[%clk 0:00:12]}  Qe6 {[%clk 0:00:52]} 32. Qc5 {[%clk 0:00:08]}  Qf7 {[%clk 0:00:42]} 33. Kg2 {[%clk 0:00:09]}  h6 {[%clk 0:00:41]} 34. Qc8+ {[%clk 0:00:09]}  Qf8 {[%clk 0:00:40]} 35. Qxf8+ {[%clk 0:00:08]}  Kh7 {[%clk 0:00:39]} 36. Qxf5+ {[%clk 0:00:09]} 1-0


[Site "https://www.chess.com"]

[Event "Titled Tuesday Blitz October 26 2021"]
[White "Gokerkan, Cem Kaan"]
[Black "Bartel, Michal"]
[WhiteFideId "6336760"]
[BlackFideId "1119257"]
[WhiteElo "2382"]
[BlackElo "2211"]
[Result "1-0"]
[Round "03"]
[TimeControl "180+1"]
[Date "2021.10.26"]
[WhiteClock "0:02:02"]
[BlackClock "0:01:34"]

1. e4 {[%clk 0:03:00]}  e5 {[%clk 0:02:59]} 2. Nf3 {[%clk 0:03:00]}  Nc6 {[%clk 0:02:59]} 3. Bc4 {[%clk 0:03:01]}  g6 {[%clk 0:02:59]} 4. O-O {[%clk 0:02:53]}  Bg7 {[%clk 0:02:59]} 5. c3 {[%clk 0:02:53]}  Nge7 {[%clk 0:02:59]} 6. d4 {[%clk 0:02:52]}  d6 {[%clk 0:02:58]} 7. dxe5 {[%clk 0:02:52]}  dxe5 {[%clk 0:02:57]} 8. Qe2 {[%clk 0:02:52]}  O-O {[%clk 0:02:56]} 9. Rd1 {[%clk 0:02:53]}  Qe8 {[%clk 0:02:55]} 10. Na3 {[%clk 0:02:51]}  a6 {[%clk 0:02:55]} 11. h3 {[%clk 0:02:51]}  h6 {[%clk 0:02:55]} 12. Nc2 {[%clk 0:02:50]}  Kh7 {[%clk 0:02:54]} 13. Nb4 {[%clk 0:02:47]}  Nxb4 {[%clk 0:02:47]} 14. cxb4 {[%clk 0:02:47]}  Bd7 {[%clk 0:02:47]} 15. Be3 {[%clk 0:02:42]}  Nc6 {[%clk 0:02:40]} 16. Bc5 {[%clk 0:02:38]}  Rg8 {[%clk 0:02:40]} 17. Rac1 {[%clk 0:02:33]}  b6 {[%clk 0:02:35]} 18. Be3 {[%clk 0:02:32]}  Nxb4 {[%clk 0:02:35]} 19. a3 {[%clk 0:02:33]}  Nc6 {[%clk 0:02:33]} 20. Bxa6 {[%clk 0:02:31]}  Ra7 {[%clk 0:01:57]} 21. Rxd7 {[%clk 0:02:17]}  Qxd7 {[%clk 0:01:43]} 22. Bb5 {[%clk 0:02:17]}  Rd8 {[%clk 0:01:42]} 23. Bxc6 {[%clk 0:02:11]}  Qd3 {[%clk 0:01:39]} 24. Qxd3 {[%clk 0:02:11]}  Rxd3 {[%clk 0:01:40]} 25. Bd5 {[%clk 0:02:12]}  f5 {[%clk 0:01:38]} 26. Ne1 {[%clk 0:02:08]}  Rxd5 {[%clk 0:01:33]} 27. exd5 {[%clk 0:02:08]}  e4 {[%clk 0:01:33]} 28. Bf4 {[%clk 0:02:02]}  Bxb2 {[%clk 0:01:32]} 29. Rxc7+ {[%clk 0:02:02]}  Rxc7 {[%clk 0:01:33]} 30. Bxc7 {[%clk 0:02:03]}  Bxa3 {[%clk 0:01:34]} 31. d6 {[%clk 0:02:02]} 1-0


[Site "https://www.chess.com"]

[Event "Titled Tuesday Blitz October 26 2021"]
[White "Indjic, Aleksandar"]
[Black "Trent, Lawrence"]
[WhiteFideId "911925"]
[BlackFideId "408638"]
[WhiteElo "2643"]
[BlackElo "2474"]
[Result "1-0"]
[Round "03"]
[TimeControl "180+1"]
[Date "2021.10.26"]
[WhiteClock "0:01:19"]
[BlackClock "0:01:22"]

1. d4 {[%clk 0:03:00]}  b6 {[%clk 0:01:46]} 2. c4 {[%clk 0:02:54]}  Bb7 {[%clk 0:01:46]} 3. Nc3 {[%clk 0:02:54]}  e6 {[%clk 0:01:46]} 4. a3 {[%clk 0:02:54]}  f5 {[%clk 0:01:45]} 5. Nf3 {[%clk 0:02:54]}  Nf6 {[%clk 0:01:45]} 6. Bf4 {[%clk 0:02:54]}  Be7 {[%clk 0:01:45]} 7. e3 {[%clk 0:02:54]}  O-O {[%clk 0:01:45]} 8. h3 {[%clk 0:02:54]}  Ne4 {[%clk 0:01:45]} 9. Nxe4 {[%clk 0:02:52]}  fxe4 {[%clk 0:01:41]} 10. Nd2 {[%clk 0:02:51]}  d5 {[%clk 0:01:41]} 11. Qg4 {[%clk 0:02:47]}  Rf6 {[%clk 0:01:36]} 12. h4 {[%clk 0:02:43]}  Nd7 {[%clk 0:01:33]} 13. h5 {[%clk 0:02:42]}  h6 {[%clk 0:01:31]} 14. Rh3 {[%clk 0:01:22]}  c5 {[%clk 0:01:29]} 15. Rg3 {[%clk 0:01:21]}  cxd4 {[%clk 0:01:22]} 16. Qxg7# {[%clk 0:01:19]} 1-0


[Site "https://www.chess.com"]

[Event "Titled Tuesday Blitz October 26 2021"]
[White "Mikhailovsky, Vladimir"]
[Black "Ghazarian, Kirk"]
[WhiteFideId "34105414"]
[BlackFideId "30908604"]
[WhiteElo "2402"]
[BlackElo "2003"]
[Result "0-1"]
[Round "03"]
[TimeControl "180+1"]
[Date "2021.10.26"]
[WhiteClock "0:00:02"]
[BlackClock "0:01:28"]

1. e4 {[%clk 0:03:00]}  c5 {[%clk 0:02:57]} 2. Nf3 {[%clk 0:03:00]}  Nf6 {[%clk 0:02:57]} 3. e5 {[%clk 0:03:00]}  Nd5 {[%clk 0:02:56]} 4. Nc3 {[%clk 0:03:01]}  e6 {[%clk 0:02:54]} 5. Nxd5 {[%clk 0:02:58]}  exd5 {[%clk 0:02:55]} 6. d4 {[%clk 0:02:59]}  Nc6 {[%clk 0:02:51]} 7. dxc5 {[%clk 0:02:50]}  Bxc5 {[%clk 0:02:52]} 8. Bd3 {[%clk 0:02:51]}  d6 {[%clk 0:02:50]} 9. exd6 {[%clk 0:02:42]}  Qxd6 {[%clk 0:02:51]} 10. O-O {[%clk 0:02:43]}  O-O {[%clk 0:02:48]} 11. c3 {[%clk 0:02:37]}  Re8 {[%clk 0:02:47]} 12. h3 {[%clk 0:02:21]}  h6 {[%clk 0:02:27]} 13. Re1 {[%clk 0:01:45]}  Bxh3 {[%clk 0:02:16]} 14. Be3 {[%clk 0:00:18]}  Bxe3 {[%clk 0:02:04]} 15. fxe3 {[%clk 0:00:15]}  Bg4 {[%clk 0:01:59]} 16. Qd2 {[%clk 0:00:12]}  Bxf3 {[%clk 0:01:38]} 17. gxf3 {[%clk 0:00:12]}  Ne5 {[%clk 0:01:38]} 18. Be2 {[%clk 0:00:10]}  Re6 {[%clk 0:01:38]} 19. Kh1 {[%clk 0:00:04]}  Qe7 {[%clk 0:01:31]} 20. Bd1 {[%clk 0:00:02]}  Qh4+ {[%clk 0:01:28]} 0-1


[Site "https://www.chess.com"]

[Event "Titled Tuesday Blitz October 26 2021"]
[White "Milchev, Nikolay"]
[Black "Kobalia, Mikhail"]
[WhiteFideId "2906090"]
[BlackFideId "4119150"]
[WhiteElo "2449"]
[BlackElo "2590"]
[Result "0-1"]
[Round "03"]
[TimeControl "180+1"]
[Date "2021.10.26"]
[WhiteClock "0:00:17"]
[BlackClock "0:00:03"]

1. Nf3 {[%clk 0:03:00]}  Nf6 {[%clk 0:02:56]} 2. c4 {[%clk 0:03:01]}  g6 {[%clk 0:02:56]} 3. Nc3 {[%clk 0:03:02]}  Bg7 {[%clk 0:02:56]} 4. e4 {[%clk 0:03:03]}  O-O {[%clk 0:02:56]} 5. d4 {[%clk 0:03:04]}  d6 {[%clk 0:02:56]} 6. h3 {[%clk 0:03:04]}  e5 {[%clk 0:02:56]} 7. dxe5 {[%clk 0:03:05]}  dxe5 {[%clk 0:02:56]} 8. Be3 {[%clk 0:03:06]}  Nbd7 {[%clk 0:02:52]} 9. Be2 {[%clk 0:03:04]}  Nh5 {[%clk 0:02:52]} 10. c5 {[%clk 0:02:57]}  Nf4 {[%clk 0:02:50]} 11. g3 {[%clk 0:02:56]}  Ng2+ {[%clk 0:02:47]} 12. Kf1 {[%clk 0:02:55]}  Nxe3+ {[%clk 0:02:47]} 13. fxe3 {[%clk 0:02:56]}  Nxc5 {[%clk 0:02:47]} 14. Kg2 {[%clk 0:02:56]}  c6 {[%clk 0:02:40]} 15. Rc1 {[%clk 0:02:56]}  Qb6 {[%clk 0:02:37]} 16. Qc2 {[%clk 0:02:48]}  Ne6 {[%clk 0:02:22]} 17. Nd1 {[%clk 0:02:30]}  f5 {[%clk 0:02:17]} 18. exf5 {[%clk 0:02:27]}  gxf5 {[%clk 0:02:17]} 19. Bc4 {[%clk 0:02:25]}  Kh8 {[%clk 0:02:16]} 20. Qb3 {[%clk 0:02:21]}  Qxb3 {[%clk 0:01:47]} 21. Bxb3 {[%clk 0:02:22]}  a5 {[%clk 0:01:38]} 22. a4 {[%clk 0:02:20]}  Ra6 {[%clk 0:01:35]} 23. Bc4 {[%clk 0:02:16]}  Rb6 {[%clk 0:01:33]} 24. b3 {[%clk 0:02:17]}  Rb4 {[%clk 0:01:31]} 25. Nc3 {[%clk 0:02:14]}  e4 {[%clk 0:01:23]} 26. Nh4 {[%clk 0:02:08]}  Nc5 {[%clk 0:01:01]} 27. Na2 {[%clk 0:01:51]}  Nxb3 {[%clk 0:01:01]} 28. Nxb4 {[%clk 0:01:51]}  Nxc1 {[%clk 0:01:01]} 29. Nxc6 {[%clk 0:01:51]}  bxc6 {[%clk 0:00:49]} 30. Rxc1 {[%clk 0:01:50]}  Rd8 {[%clk 0:00:47]} 31. Rc2 {[%clk 0:01:41]}  Bh6 {[%clk 0:00:45]} 32. Kf2 {[%clk 0:01:40]}  Rd1 {[%clk 0:00:39]} 33. Be2 {[%clk 0:01:38]}  Rd6 {[%clk 0:00:31]} 34. Rc5 {[%clk 0:01:27]}  Bg5 {[%clk 0:00:18]} 35. Nxf5 {[%clk 0:01:24]}  Rd5 {[%clk 0:00:15]} 36. Rxd5 {[%clk 0:01:16]}  cxd5 {[%clk 0:00:15]} 37. Nd4 {[%clk 0:01:10]}  Bf6 {[%clk 0:00:12]} 38. Nc6 {[%clk 0:01:07]}  Bc3 {[%clk 0:00:12]} 39. h4 {[%clk 0:00:59]}  Kg7 {[%clk 0:00:11]} 40. Ne7 {[%clk 0:00:53]}  Be6 {[%clk 0:00:10]} 41. Bb5 {[%clk 0:00:50]}  Kf6 {[%clk 0:00:09]} 42. Nc6 {[%clk 0:00:50]}  Bg4 {[%clk 0:00:08]} 43. Be2 {[%clk 0:00:48]}  Bxe2 {[%clk 0:00:06]} 44. Kxe2 {[%clk 0:00:49]}  h5 {[%clk 0:00:06]} 45. Na7 {[%clk 0:00:47]}  Kf5 {[%clk 0:00:05]} 46. Nb5 {[%clk 0:00:46]}  Be5 {[%clk 0:00:04]} 47. Kf2 {[%clk 0:00:39]}  Kg4 {[%clk 0:00:05]} 48. Kg2 {[%clk 0:00:40]}  Bxg3 {[%clk 0:00:05]} 49. Nc3 {[%clk 0:00:40]}  Bxh4 {[%clk 0:00:05]} 50. Nxd5 {[%clk 0:00:40]}  Bg5 {[%clk 0:00:05]} 51. Nc3 {[%clk 0:00:40]}  Kf5 {[%clk 0:00:05]} 52. Kf2 {[%clk 0:00:39]}  h4 {[%clk 0:00:05]} 53. Nd5 {[%clk 0:00:39]}  Ke5 {[%clk 0:00:05]} 54. Nb6 {[%clk 0:00:37]}  h3 {[%clk 0:00:03]} 55. Nc4+ {[%clk 0:00:35]}  Kd5 {[%clk 0:00:03]} 56. Nxa5 {[%clk 0:00:35]}  Bxe3+ {[%clk 0:00:03]} 57. Kg3 {[%clk 0:00:36]}  Bd2 {[%clk 0:00:02]} 58. Nb3 {[%clk 0:00:35]}  e3 {[%clk 0:00:03]} 59. Kxh3 {[%clk 0:00:31]}  e2 {[%clk 0:00:02]} 60. Nxd2 {[%clk 0:00:29]}  e1=Q {[%clk 0:00:03]} 61. Nf3 {[%clk 0:00:30]}  Qf1+ {[%clk 0:00:03]} 62. Kg3 {[%clk 0:00:30]}  Kc6 {[%clk 0:00:03]} 63. Kf4 {[%clk 0:00:25]}  Qc4+ {[%clk 0:00:03]} 64. Ke5 {[%clk 0:00:25]}  Kb7 {[%clk 0:00:03]} 65. Nd4 {[%clk 0:00:26]}  Qxa4 {[%clk 0:00:03]} 66. Kd5 {[%clk 0:00:25]}  Qa5+ {[%clk 0:00:04]} 67. Kc4 {[%clk 0:00:24]}  Qe5 {[%clk 0:00:04]} 68. Nb5 {[%clk 0:00:23]}  Kb6 {[%clk 0:00:04]} 69. Nc3 {[%clk 0:00:24]}  Qc5+ {[%clk 0:00:04]} 70. Kd3 {[%clk 0:00:23]}  Qd6+ {[%clk 0:00:04]} 71. Kc4 {[%clk 0:00:23]}  Qc6+ {[%clk 0:00:04]} 72. Kb4 {[%clk 0:00:23]}  Qc5+ {[%clk 0:00:04]} 73. Kb3 {[%clk 0:00:24]}  Ka5 {[%clk 0:00:05]} 74. Na2 {[%clk 0:00:21]}  Qd5+ {[%clk 0:00:04]} 75. Ka3 {[%clk 0:00:21]}  Qd3+ {[%clk 0:00:04]} 76. Kb2 {[%clk 0:00:22]}  Ka4 {[%clk 0:00:05]} 77. Nc1 {[%clk 0:00:22]}  Qd2+ {[%clk 0:00:04]} 78. Kb1 {[%clk 0:00:21]}  Ka3 {[%clk 0:00:04]} 79. Nd3 {[%clk 0:00:20]}  Qd1+ {[%clk 0:00:04]} 80. Nc1 {[%clk 0:00:18]}  Qa4 {[%clk 0:00:03]} 81. Ka1 {[%clk 0:00:17]}  Qd4+ {[%clk 0:00:03]} 82. Kb1 {[%clk 0:00:17]}  Qb2# {[%clk 0:00:03]} 0-1


[Site "https://www.chess.com"]

[Event "Titled Tuesday Blitz October 26 2021"]
[White "Moroni, Luca Jr"]
[Black "Arencibia Monduy, Antonio"]
[WhiteFideId "865834"]
[BlackFideId "3507939"]
[WhiteElo "2491"]
[BlackElo "2597"]
[Result "1-0"]
[Round "03"]
[TimeControl "180+1"]
[Date "2021.10.26"]
[WhiteClock "0:00:03"]
[BlackClock "0:00:15"]

1. d4 {[%clk 0:03:00]}  Nf6 {[%clk 0:02:59]} 2. c4 {[%clk 0:03:00]}  e6 {[%clk 0:02:59]} 3. Nc3 {[%clk 0:03:01]}  c5 {[%clk 0:02:59]} 4. Nf3 {[%clk 0:03:00]}  cxd4 {[%clk 0:02:56]} 5. Nxd4 {[%clk 0:03:01]}  d5 {[%clk 0:02:57]} 6. cxd5 {[%clk 0:03:00]}  exd5 {[%clk 0:02:56]} 7. g3 {[%clk 0:03:00]}  Nc6 {[%clk 0:02:57]} 8. Bg2 {[%clk 0:03:00]}  Bc5 {[%clk 0:02:57]} 9. Nb3 {[%clk 0:03:00]}  Bb4 {[%clk 0:02:56]} 10. O-O {[%clk 0:02:59]}  Be6 {[%clk 0:02:56]} 11. Nb5 {[%clk 0:02:47]}  O-O {[%clk 0:02:54]} 12. Bf4 {[%clk 0:02:46]}  Rc8 {[%clk 0:02:53]} 13. Rc1 {[%clk 0:02:46]}  a6 {[%clk 0:02:53]} 14. N5d4 {[%clk 0:02:45]}  Nxd4 {[%clk 0:02:52]} 15. Nxd4 {[%clk 0:02:45]}  Qb6 {[%clk 0:02:49]} 16. Nb3 {[%clk 0:02:01]}  Rfd8 {[%clk 0:02:15]} 17. Bg5 {[%clk 0:01:55]}  Be7 {[%clk 0:02:15]} 18. Qd4 {[%clk 0:01:50]}  Qxd4 {[%clk 0:02:11]} 19. Nxd4 {[%clk 0:01:51]}  h6 {[%clk 0:02:11]} 20. Bf4 {[%clk 0:01:46]}  Bc5 {[%clk 0:02:02]} 21. Nxe6 {[%clk 0:01:39]}  fxe6 {[%clk 0:02:02]} 22. Rfd1 {[%clk 0:01:22]}  Kf7 {[%clk 0:02:01]} 23. e3 {[%clk 0:01:18]}  b5 {[%clk 0:01:53]} 24. h3 {[%clk 0:01:15]}  Rc6 {[%clk 0:01:34]} 25. b4 {[%clk 0:01:12]}  Rdc8 {[%clk 0:01:29]} 26. bxc5 {[%clk 0:01:09]}  Rxc5 {[%clk 0:01:29]} 27. Rxc5 {[%clk 0:01:08]}  Rxc5 {[%clk 0:01:30]} 28. Rd2 {[%clk 0:01:02]}  Nd7 {[%clk 0:01:30]} 29. Bd6 {[%clk 0:00:51]}  Rc6 {[%clk 0:01:23]} 30. Bb4 {[%clk 0:00:48]}  Rc4 {[%clk 0:01:21]} 31. a3 {[%clk 0:00:46]}  Nb6 {[%clk 0:01:14]} 32. Bf1 {[%clk 0:00:41]}  Rc1 {[%clk 0:01:13]} 33. Kg2 {[%clk 0:00:41]}  Kf6 {[%clk 0:01:07]} 34. e4 {[%clk 0:00:34]}  dxe4 {[%clk 0:01:00]} 35. Rd6 {[%clk 0:00:34]}  Nd5 {[%clk 0:00:57]} 36. Rxa6 {[%clk 0:00:26]}  e3 {[%clk 0:00:58]} 37. Bd3 {[%clk 0:00:08]}  Rd1 {[%clk 0:00:42]} 38. Bxb5 {[%clk 0:00:08]}  Nc7 {[%clk 0:00:41]} 39. Ra5 {[%clk 0:00:04]}  Nxb5 {[%clk 0:00:40]} 40. Rxb5 {[%clk 0:00:05]}  e2 {[%clk 0:00:40]} 41. a4 {[%clk 0:00:04]}  e1=Q {[%clk 0:00:38]} 42. Bxe1 {[%clk 0:00:04]}  Rxe1 {[%clk 0:00:39]} 43. a5 {[%clk 0:00:04]}  Ra1 {[%clk 0:00:40]} 44. h4 {[%clk 0:00:04]}  g5 {[%clk 0:00:39]} 45. h5 {[%clk 0:00:03]}  Ra4 {[%clk 0:00:39]} 46. Kf3 {[%clk 0:00:03]}  g4+ {[%clk 0:00:39]} 47. Ke3 {[%clk 0:00:03]}  e5 {[%clk 0:00:39]} 48. Ke2 {[%clk 0:00:02]}  Kf5 {[%clk 0:00:37]} 49. Kd3 {[%clk 0:00:01]}  Ra2 {[%clk 0:00:37]} 50. Ke3 {[%clk 0:00:01]}  Ra3+ {[%clk 0:00:37]} 51. Ke2 {[%clk 0:00:02]}  Ra2+ {[%clk 0:00:38]} 52. Kf1 {[%clk 0:00:02]}  Ra1+ {[%clk 0:00:39]} 53. Kg2 {[%clk 0:00:03]}  Ra2 {[%clk 0:00:40]} 54. Rb6 {[%clk 0:00:03]}  Ra3 {[%clk 0:00:35]} 55. Rxh6 {[%clk 0:00:03]}  Rxa5 {[%clk 0:00:35]} 56. Rh8 {[%clk 0:00:03]}  Ra2 {[%clk 0:00:29]} 57. Rg8 {[%clk 0:00:01]}  e4 {[%clk 0:00:28]} 58. h6 {[%clk 0:00:01]}  e3 {[%clk 0:00:28]} 59. h7 {[%clk 0:00:01]}  e2 {[%clk 0:00:21]} 60. h8=Q {[%clk 0:00:02]}  e1=Q {[%clk 0:00:21]} 61. Qh7+ {[%clk 0:00:03]}  Kf6 {[%clk 0:00:15]} 62. Rf8+ {[%clk 0:00:03]}  Kg5 {[%clk 0:00:15]} 63. Rf5# {[%clk 0:00:03]} 1-0


[Site "https://www.chess.com"]